bitfinex-derivatives/quotes_BTCF0:USTF0_20250212
["timestamp","ask_amount","ask_price","bid_price","bid_amount"]
[1739368411662,0.001,94679.0,94669.0,0.17813681]
[1739368411865,0.3608,94683.0,94669.0,0.23067658]
[1739368412069,0.004,94677.0,94669.0,0.23067658]
[1739368412372,0.004,94677.0,94664.0,0.36040497]
[1739368412764,0.001,94679.0,94664.0,0.05214474]
[1739368412969,0.001,94679.0,94669.0,0.23067658]
[1739368413569,0.001,94677.0,94669.0,0.23067658]
[1739368413964,0.00015843,94690.0,94675.0,0.5720594]
[1739368414168,0.3608,94702.0,94684.0,0.3608]
[1739368414377,0.3608,94702.0,94692.0,0.23067658]
[1739368414563,0.3608,94702.0,94692.0,0.17813681]
[1739368414763,0.3608,94715.0,94694.0,0.3608]
[1739368415068,0.33970815,94724.0,94712.0,0.3608]
[1739368415273,0.4215,94745.0,94722.0,0.3608]
[1739368415477,0.23803459,94738.0,94723.0,0.3931]
[1739368415771,0.00060001,94773.0,94723.0,0.3931]
[1739368415772,0.69416363,94765.0,94736.0,0.3608]
[1739368416073,0.69416363,94765.0,94750.0,0.23067658]
[1739368416664,0.3608,94757.0,94741.0,0.14644]
[1739368416867,0.33336363,94765.0,94741.0,0.14644]
[1739368416868,0.23067658,94760.0,94748.0,0.00015833]
[1739368417073,0.2444396,94760.0,94750.0,0.23067658]
[1739368417274,0.2444396,94760.0,94752.0,0.3608]
[1739368417477,0.0698152,94760.0,94752.0,0.3608]
[1739368417774,0.0698152,94760.0,94752.0,0.30826023]
[1739368419468,0.0838152,94760.0,94752.0,0.30826023]
[1739368419669,0.0838152,94760.0,94751.0,0.81604]
[1739368419974,0.3608,94757.0,94748.0,0.00015833]
[1739368420169,0.3608,94749.0,94748.0,0.00015833]
[1739368420776,0.3108,94757.0,94739.0,0.23067658]
[1739368420978,0.3108,94757.0,94738.0,0.3608]
[1739368420979,0.014,94760.0,94747.0,0.59147658]
[1739368421175,0.014,94760.0,94748.0,0.4206]
[1739368421676,0.014,94760.0,94749.0,0.4236]
[1739368421977,0.00015833,94767.0,94749.0,0.4236]
[1739368422169,0.00015833,94767.0,94757.0,0.59147658]
[1739368422372,0.00015833,94767.0,94758.0,0.14624]
[1739368422975,0.00015833,94767.0,94757.0,0.59147658]
[1739368423274,0.001,94760.0,94750.0,0.14624]
[1739368423788,0.001,94760.0,94749.0,0.47710273]
[1739368423789,0.3608,94756.0,94749.0,0.05350273]
[1739368423971,0.001,94760.0,94740.0,0.23067658]
[1739368424170,0.001,94760.0,94745.0,0.05253035]
[1739368424370,0.001,94760.0,94750.0,0.23067658]
[1739368425070,0.3608,94765.0,94757.0,0.003]
[1739368425794,0.3608,94765.0,94758.0,0.8368]
[1739368425974,0.001,94760.0,94758.0,0.8368]
[1739368426773,0.001,94760.0,94758.0,0.78409352]
[1739368426979,0.3608,94765.0,94758.0,0.78409352]
[1739368428277,0.00015833,94767.0,94758.0,0.78409352]
[1739368428474,0.00015833,94767.0,94763.0,0.3608]
[1739368428977,0.3608,94788.0,94763.0,0.3608]
[1739368429172,0.3608,94788.0,94770.0,0.23067658]
[1739368429369,0.3608,94788.0,94763.0,0.3608]
[1739368429568,0.3608,94788.0,94778.0,0.23067658]
[1739368429890,0.3608,94788.0,94778.0,0.44170658]
[1739368430178,0.00015833,94792.0,94782.0,0.2110204]
[1739368430374,0.00015833,94792.0,94780.0,0.23067658]
[1739368430575,0.00015833,94792.0,94779.0,0.24]
[1739368431069,0.3608,94785.0,94774.0,0.00015833]
[1739368431267,0.001,94788.0,94774.0,0.05422113]
[1739368431468,0.001,94788.0,94775.0,0.3608]
[1739368431675,0.001,94788.0,94785.0,0.3608]
[1739368431880,0.00015833,94792.0,94786.0,0.8255]
[1739368432083,0.3608,94822.0,94791.0,0.2110016]
[1739368432272,0.3608,94822.0,94787.0,0.3608]
[1739368432273,0.3608,94822.0,94798.0,0.3608]
[1739368432879,0.3608,94822.0,94801.0,0.15827272]
[1739368433085,0.3608,94822.0,94810.0,0.23067658]
[1739368433379,0.00015825,94821.0,94811.0,0.3608]
[1739368433676,0.00015825,94821.0,94820.0,0.3608]
[1739368434479,0.00015825,94821.0,94810.0,0.05288156]
[1739368434682,0.3608,94813.0,94799.0,0.3608]
[1739368434884,0.3608,94813.0,94805.0,0.05271267]
[1739368435382,0.3608,94814.0,94805.0,0.05271267]
[1739368435883,0.3608,94814.0,94805.0,0.00016444]
[1739368436081,0.3608,94814.0,94799.0,0.3608]
[1739368436582,0.5717518,94814.0,94799.0,0.41338073]
[1739368436783,0.23067658,94810.0,94799.0,0.3608]
[1739368436979,0.3608,94804.0,94781.0,0.14584]
[1739368437179,0.3608,94796.0,94795.0,0.00015825]
[1739368437780,0.3608,94805.0,94795.0,0.00015825]
[1739368438578,0.3608,94815.0,94795.0,0.00015825]
[1739368438980,0.3608,94815.0,94790.0,0.17812835]
[1739368439179,0.3608,94815.0,94794.0,0.3608]
[1739368439779,0.3608,94801.0,94789.0,0.14576]
[1739368440685,0.3608,94791.0,94789.0,0.14576]
[1739368440872,0.3608,94791.0,94786.0,0.00015825]
[1739368442084,0.00015825,94798.0,94786.0,0.3608]
[1739368442688,0.00015825,94798.0,94796.0,0.3608]
[1739368444988,0.00015825,94798.0,94796.0,0.30809352]
[1739368445584,0.3608,94847.0,94796.0,0.30809352]
[1739368445791,0.3608,94847.0,94822.0,0.3608]
[1739368446393,0.35570403,94840.0,94822.0,0.3608]
[1739368446592,0.3608,94847.0,94822.0,0.3608]
[1739368446792,0.00015825,94838.0,94822.0,0.3608]
[1739368447291,0.18339754,94832.0,94831.0,0.3608]
[1739368448087,0.18339754,94832.0,94831.0,0.30809352]
[1739368448588,0.00015825,94838.0,94837.0,0.2108992]
[1739368448895,0.2533,94869.0,94841.0,0.2108895]
[1739368449083,0.2533,94869.0,94854.0,0.3608]
[1739368449683,0.3608,94872.0,94854.0,0.3608]
[1739368449891,0.00015815,94869.0,94854.0,0.3608]
[1739368451297,0.011,94866.0,94862.0,0.3608]
[1739368452087,0.01015815,94869.0,94862.0,0.3608]
[1739368452897,0.00158174,94895.0,94864.0,0.3608]
[1739368453092,0.00158174,94895.0,94879.0,0.3608]
[1739368453392,0.00158174,94895.0,94888.0,0.3608]
[1739368453895,0.00158174,94895.0,94879.0,0.3608]
[1739368454091,0.35570403,94890.0,94879.0,0.30825167]
[1739368454292,0.00158174,94895.0,94879.0,0.30825167]
[1739368454486,0.00158174,94895.0,94879.0,0.36082829]
[1739368454995,0.00158174,94895.0,94880.0,0.60250403]
[1739368455395,0.00158174,94895.0,94880.0,0.2468]
[1739368456192,0.00158174,94895.0,94880.0,0.2478]
[1739368457097,0.00158174,94895.0,94880.0,0.19509352]
[1739368457495,0.00158174,94895.0,94880.0,0.19609352]
[1739368458098,0.3608,94888.0,94880.0,0.002]
[1739368458791,0.00158174,94895.0,94880.0,0.002]
[1739368459293,0.00158174,94895.0,94890.0,0.3608]
[1739368459593,0.3608,94927.0,94890.0,0.3608]
[1739368459594,0.3608,94931.0,94895.0,0.2107685]
[1739368459798,0.35570403,94930.0,94904.0,0.3608]
[1739368459989,0.35570403,94920.0,94891.0,0.00084]
[1739368460194,0.3608,94909.0,94890.0,0.30809352]
[1739368460903,0.36095805,94909.0,94890.0,0.30825157]
[1739368461103,0.36095805,94909.0,94890.0,0.36213078]
[1739368461596,0.36095805,94909.0,94890.0,0.36313078]
[1739368461797,0.36095805,94909.0,94867.0,0.3608]
[1739368461999,0.36095805,94909.0,94828.0,0.05193933]
[1739368462000,0.2108964,94839.0,94828.0,0.05193933]
[1739368462195,0.7216,94829.0,94797.0,0.3608]
[1739368462393,0.3608,94812.0,94798.0,0.210985]
[1739368462589,0.3608,94829.0,94807.0,0.30411063]
[1739368462804,0.3608,94829.0,94810.0,0.35570403]
[1739368463005,0.00015817,94827.0,94825.0,0.2511305]
[1739368463301,0.00015817,94827.0,94825.0,0.19842402]
[1739368463494,0.3608,94842.0,94826.0,0.4019]
[1739368463801,0.3608,94842.0,94827.0,0.14508]
[1739368463997,0.001,94839.0,94827.0,0.14508]
[1739368464503,0.3608,94830.0,94827.0,0.14508]
[1739368465099,0.001,94839.0,94829.0,0.3608]
[1739368465401,0.00215817,94842.0,94838.0,0.3608]
[1739368465705,0.00158296,94848.0,94838.0,0.5716958]
[1739368465904,0.00158296,94848.0,94847.0,0.3608]
[1739368466199,0.3608,94877.0,94847.0,0.3608]
[1739368466403,0.3608,94877.0,94856.0,0.3608]
[1739368466599,0.3608,94863.0,94856.0,0.3608]
[1739368466800,0.00015817,94871.0,94856.0,0.3608]
[1739368467402,0.2108308,94868.0,94853.0,0.00015817]
[1739368467603,0.3608,94860.0,94853.0,0.00015817]
[1739368467802,0.3608,94860.0,94856.0,0.001]
[1739368468210,0.005,94863.0,94856.0,0.001]
[1739368468503,0.3608,94860.0,94856.0,0.011]
[1739368468908,0.3608,94860.0,94856.0,0.01]
[1739368469102,0.3678,94860.0,94856.0,0.011]
[1739368469403,0.3678,94860.0,94847.0,0.10345169]
[1739368469710,0.3608,94850.0,94838.0,0.14496]
[1739368470502,0.3608,94850.0,94839.0,0.14496]
[1739368471204,0.003,94850.0,94840.0,0.71650403]
[1739368471404,0.004,94850.0,94849.0,0.3608]
[1739368471603,0.3608,94881.0,94853.0,0.2108637]
[1739368471803,0.3608,94881.0,94865.0,0.3608]
[1739368472405,0.3608,94881.0,94849.0,0.3608]
[1739368472600,0.3608,94873.0,94858.0,0.3608]
[1739368472801,0.3608,94873.0,94859.0,0.3908]
[1739368473015,0.00015817,94874.0,94867.0,0.3608]
[1739368474001,0.003,94873.0,94867.0,0.3608]
[1739368474512,0.00015817,94874.0,94867.0,0.3608]
[1739368474702,0.00015817,94874.0,94867.0,0.3618]
[1739368474703,0.00415817,94874.0,94867.0,0.3618]
[1739368475101,0.00515817,94874.0,94867.0,0.3618]
[1739368475313,0.004,94873.0,94868.0,0.14484]
[1739368475510,0.3608,94891.0,94870.0,0.2108246]
[1739368475709,0.3608,94899.0,94871.0,0.2108221]
[1739368475911,0.3608,94899.0,94876.0,0.3608]
[1739368476606,0.00015808,94897.0,94878.0,0.00015808]
[1739368477207,0.3608,94891.0,94878.0,0.00015808]
[1739368477808,0.3608,94881.0,94878.0,0.00015808]
[1739368478408,0.3608,94881.0,94878.0,0.001]
[1739368478915,0.2108051,94880.0,94878.0,0.001]
[1739368480016,0.2108051,94880.0,94878.0,0.002]
[1739368480218,0.3608,94881.0,94878.0,0.002]
[1739368480915,0.009,94880.0,94878.0,0.002]
[1739368481516,0.009,94880.0,94868.0,0.1602817]
[1739368481719,0.3698,94881.0,94878.0,0.001]
[1739368482314,0.3698,94881.0,94878.0,0.002]
[1739368482613,0.009,94881.0,94878.0,0.3628]
[1739368482811,0.3608,94904.0,94884.0,0.2107937]
[1739368484007,0.01515808,94897.0,94884.0,0.001]
[1739368484421,0.01615808,94897.0,94889.0,0.210783]
[1739368484616,0.01615808,94897.0,94890.0,0.3553797]
[1739368484920,0.01615808,94897.0,94891.0,0.14456]
[1739368485110,0.01615808,94897.0,94891.0,0.3553372]
[1739368485312,0.01615808,94897.0,94891.0,0.14456]
[1739368485518,0.01715808,94897.0,94891.0,0.14456]
[1739368485817,0.3608,94892.0,94891.0,0.14456]
[1739368486320,0.3608,94896.0,94891.0,0.14452]
[1739368486512,0.01115808,94897.0,94891.0,0.14452]
[1739368487109,0.00015808,94897.0,94891.0,0.14452]
[1739368487313,0.009,94892.0,94891.0,0.14652]
[1739368487514,0.009,94892.0,94891.0,0.09381352]
[1739368487816,0.009,94892.0,94891.0,0.14549418]
[1739368488016,0.01015808,94897.0,94892.0,0.2107771]
[1739368488320,0.3608,94896.0,94891.0,0.19816066]
[1739368488821,0.001,94892.0,94891.0,0.19816066]
[1739368490716,0.001,94896.0,94895.0,0.2107704]
[1739368491329,0.00015808,94897.0,94895.0,0.2107704]
[1739368492019,0.3608,94927.0,94912.0,0.2107307]
[1739368492228,0.3608,94927.0,94917.0,0.210721]
[1739368492616,0.3608,94919.0,94911.0,0.2107336]
[1739368492811,0.3608,94919.0,94905.0,0.2107473]
[1739368493721,0.3608,94919.0,94905.0,0.15804082]
[1739368493925,0.3608,94919.0,94903.0,0.00015808]
[1739368494529,0.00015808,94921.0,94909.0,0.23036615]
[1739368494823,0.009,94919.0,94909.0,0.23036615]
[1739368495121,0.009,94919.0,94909.0,0.2107372]
[1739368495122,0.3698,94919.0,94909.0,0.2107372]
[1739368495814,0.3688,94919.0,94909.0,0.2117372]
[1739368496013,0.3698,94919.0,94909.0,0.001]
[1739368496220,0.009,94919.0,94910.0,0.2107358]
[1739368496619,0.009,94919.0,94910.0,0.15802932]
[1739368496813,0.009,94919.0,94911.0,0.2107341]
[1739368497122,0.009,94919.0,94912.0,0.210732]
[1739368497327,0.009,94919.0,94909.0,0.002]
[1739368497628,0.009,94919.0,94915.0,0.2107243]
[1739368497817,0.001,94919.0,94916.0,0.2107231]
[1739368498018,0.001,94919.0,94911.0,0.2481]
[1739368498019,0.009,94919.0,94911.0,0.2481]
[1739368498819,0.3608,94912.0,94911.0,0.001]
[1739368499330,0.3608,94912.0,94911.0,0.002]
[1739368499528,0.3608,94912.0,94911.0,0.001]
[1739368499824,0.3608,94912.0,94875.0,0.18832688]
[1739368500029,0.3608,94893.0,94880.0,0.14412]
[1739368500417,0.3608,94900.0,94885.0,0.3608]
[1739368500823,0.3608,94900.0,94890.0,0.19186511]
[1739368501018,0.3608,94910.0,94890.0,0.19186511]
[1739368501221,0.3608,94910.0,94900.0,0.19186511]
[1739368501434,0.2563,94929.0,94907.0,0.3608]
[1739368501728,0.2563,94929.0,94918.0,0.3608]
[1739368502334,0.3608,94927.0,94914.0,0.00015808]
[1739368502629,0.2563,94929.0,94914.0,0.00015808]
[1739368502630,0.2583,94929.0,94914.0,0.00015808]
[1739368502834,0.2583,94929.0,94907.0,0.35233817]
[1739368503229,0.2583,94929.0,94925.0,0.3608]
[1739368503434,0.002,94929.0,94925.0,0.3608]
[1739368504127,0.007,94929.0,94925.0,0.3608]
[1739368504329,0.18372089,94940.0,94925.0,0.3608]
[1739368504827,0.18372089,94940.0,94925.0,0.3618]
[1739368505026,0.007,94929.0,94925.0,0.3628]
[1739368505430,0.18372089,94940.0,94928.0,0.3608]
[1739368505634,0.1012396,94940.0,94939.0,0.3608]
[1739368505829,0.1012396,94940.0,94939.0,0.30809352]
[1739368505830,0.09790963,94940.0,94939.0,0.30809352]
[1739368506631,0.00158045,94957.0,94939.0,0.30809352]
[1739368506933,0.00158045,94957.0,94947.0,0.3608]
[1739368507237,0.00158045,94957.0,94956.0,0.3608]
[1739368508427,0.09790963,94959.0,94947.0,0.361958]
[1739368508630,0.3608,94955.0,94947.0,0.361958]
[1739368508831,1.0791,94954.0,94947.0,0.04388514]
[1739368509623,1.0791,94954.0,94947.0,0.04288514]
[1739368510533,1.0791,94954.0,94947.0,0.05588514]
[1739368511326,1.0791,94954.0,94947.0,0.04588514]
[1739368511734,0.89942922,94954.0,94947.0,0.04488514]
[1739368512034,0.89942922,94954.0,94941.0,0.3608]
[1739368512035,0.89942922,94954.0,94941.0,0.35397866]
[1739368512334,0.3608,94948.0,94941.0,0.0417028]
[1739368512527,0.3608,94948.0,94947.0,0.001]
[1739368512928,0.3608,94948.0,94947.0,0.002]
[1739368513324,0.3608,94948.0,94938.0,0.000158]
[1739368513325,0.6608,94948.0,94938.0,0.000158]
[1739368513525,0.3608,94939.0,94922.0,0.00158011]
[1739368513829,0.3608,94929.0,94922.0,0.00158011]
[1739368514025,0.3608,94929.0,94922.0,0.04398266]
[1739368514233,0.3608,94939.0,94922.0,0.04398266]
[1739368514432,0.3608,94930.0,94922.0,0.04398266]
[1739368515139,0.3608,94930.0,94912.0,0.35223418]
[1739368515331,0.001,94929.0,94912.0,0.35223418]
[1739368515739,0.3608,94930.0,94919.0,0.19186511]
[1739368516032,0.3608,94930.0,94922.0,0.009]
[1739368516033,0.3628,94930.0,94922.0,0.009]
[1739368516833,0.3628,94930.0,94923.0,0.3608]
[1739368517535,0.000158,94940.0,94923.0,0.3608]
[1739368517536,0.002,94929.0,94923.0,0.3608]
[1739368517941,0.002,94929.0,94923.0,0.0417251]
[1739368518144,0.3628,94930.0,94923.0,0.001]
[1739368518633,0.000158,94940.0,94923.0,0.001]
[1739368518634,0.002,94929.0,94923.0,0.001]
[1739368519039,0.002,94929.0,94923.0,0.002]
[1739368519939,0.002,94929.0,94923.0,0.001]
[1739368520338,0.000158,94940.0,94924.0,0.3608]
[1739368520533,0.00154049,94949.0,94939.0,0.3608]
[1739368520733,0.00154049,94949.0,94948.0,0.3608]
[1739368520937,0.00154049,94949.0,94948.0,0.30809352]
[1739368522038,0.00354049,94949.0,94948.0,0.30909352]
[1739368523143,0.00354049,94949.0,94948.0,0.001]
[1739368523932,0.00354049,94949.0,94948.0,0.04372016]
[1739368524140,0.00354049,94949.0,94938.0,0.3608]
[1739368524342,0.00354049,94949.0,94938.0,0.40262498]
[1739368524539,0.00354049,94949.0,94939.0,0.19186511]
[1739368524736,0.002,94949.0,94940.0,0.2106694]
[1739368524936,0.002,94949.0,94946.0,0.3608]
[1739368525139,0.000158,94958.0,94947.0,0.6618]
[1739368525340,0.000158,94958.0,94948.0,0.19186511]
[1739368525537,0.000158,94958.0,94948.0,0.40251601]
[1739368525846,0.000158,94958.0,94948.0,0.40351601]
[1739368526635,1e-08,94958.0,94948.0,0.19286511]
[1739368526848,1e-08,94958.0,94957.0,0.3608]
[1739368527142,1e-08,94958.0,94957.0,0.51872632]
[1739368528146,0.18509777,94981.0,94957.0,0.30809352]
[1739368528439,0.18509777,94981.0,94980.0,0.3608]
[1739368528440,0.12402873,94981.0,94980.0,0.3608]
[1739368528738,0.12402873,94981.0,94980.0,0.5713817]
[1739368528937,0.09638365,95000.0,94980.0,0.3608]
[1739368529131,0.07515238,95010.0,94999.0,0.3608]
[1739368529336,0.01296626,95010.0,95009.0,0.3608]
[1739368529639,0.00015791,95014.0,95009.0,0.3608]
[1739368530236,0.00015791,95014.0,95009.0,0.30809352]
[1739368530638,0.00015791,95014.0,95009.0,0.30909352]
[1739368530943,0.00015791,95014.0,95009.0,0.31009352]
[1739368531338,0.00015791,95014.0,95009.0,0.002]
[1739368532433,0.00015791,95014.0,95009.0,0.04356918]
[1739368532640,0.00015791,95014.0,95009.0,0.002]
[1739368533030,0.00015791,95014.0,95009.0,0.04448302]
[1739368533235,0.00015791,95014.0,95009.0,0.14316]
[1739368533646,0.00015791,95014.0,95003.0,0.2543]
[1739368533836,0.00015791,95014.0,95009.0,0.015]
[1739368534441,0.00015791,95014.0,95009.0,0.3608]
[1739368534634,0.00015791,95014.0,95009.0,0.3738]
[1739368535039,0.00015791,95014.0,95009.0,0.5843167]
[1739368535240,0.00015791,95014.0,95009.0,0.3738]
[1739368535939,0.00015791,95014.0,95009.0,0.584317]
[1739368536147,0.00157911,95030.0,95009.0,0.32109352]
[1739368536332,0.00157911,95030.0,95021.0,0.3608]
[1739368537436,0.00157911,95030.0,95021.0,0.7821]
[1739368537651,0.00157911,95030.0,95021.0,0.7881]
[1739368537944,0.00257911,95030.0,95021.0,0.7881]
[1739368539442,0.3608,95056.0,95021.0,0.73539352]
[1739368539640,0.3608,95056.0,95022.0,0.14296]
[1739368539840,0.3608,95046.0,95022.0,0.14296]
[1739368540549,0.36095791,95042.0,95022.0,0.14311791]
[1739368540748,0.3608,95033.0,95022.0,0.14311791]
[1739368540949,0.36095791,95042.0,95032.0,0.3608]
[1739368541247,0.3608,95053.0,95042.0,0.2104435]
[1739368541445,0.3608,95053.0,95043.0,0.2104405]
[1739368542353,0.3608,95053.0,95044.0,0.14288]
[1739368542950,0.3608,95053.0,95047.0,0.2104327]
[1739368543258,0.3608,95053.0,95048.0,0.4005]
[1739368543656,0.3608,95069.0,95052.0,0.3608]
[1739368544063,0.2,95080.0,95063.0,0.3608]
[1739368544265,0.2,95080.0,95075.0,0.3608]
[1739368544660,0.2103692,95076.0,95075.0,0.3608]
[1739368544959,0.2,95080.0,95075.0,0.3608]
[1739368545358,0.2,95080.0,95075.0,0.30809352]
[1739368546064,0.2,95080.0,95075.0,0.34966825]
[1739368546464,0.2,95080.0,95075.0,0.71046825]
[1739368546765,0.2,95080.0,95075.0,0.71246825]
[1739368547469,0.2,95080.0,95075.0,0.71239524]
[1739368548360,0.2,95080.0,95075.0,0.65968876]
[1739368550258,0.2,95080.0,95076.0,0.1426]
[1739368550657,0.10157795,95100.0,95076.0,0.1426]
[1739368550857,0.10157795,95100.0,95095.0,0.3608]
[1739368551064,0.08449849,95100.0,95095.0,0.7216]
[1739368551256,0.04139249,95100.0,95095.0,0.7216]
[1739368551463,0.3608,95115.0,95095.0,0.66889352]
[1739368551761,0.19115975,95120.0,95095.0,0.66889352]
[1739368551962,0.3608,95115.0,95095.0,0.66889352]
[1739368552165,0.3608,95116.0,95095.0,0.66889352]
[1739368553164,0.3608,95108.0,95095.0,0.66889352]
[1739368553365,0.3608,95108.0,95095.0,0.72044232]
[1739368553570,0.3608,95117.0,95095.0,0.72044232]
[1739368553766,0.2102768,95118.0,95095.0,0.72144232]
[1739368554366,0.3608,95117.0,95095.0,0.30893584]
[1739368555073,0.3608,95117.0,95103.0,0.3608]
[1739368555780,1.0667,95123.0,95103.0,0.3608]
[1739368556072,1.0667,95123.0,95114.0,0.3608]
[1739368559379,0.2624,95135.0,95124.0,0.3608]
[1739368559575,0.00157759,95136.0,95124.0,0.3608]
[1739368559777,0.00157759,95136.0,95124.0,0.3618]
[1739368560571,0.00157759,95136.0,95134.0,0.3608]
[1739368561679,0.3608,95162.0,95134.0,0.3608]
[1739368561979,0.2101804,95162.0,95147.0,0.3608]
[1739368562275,0.4233,95169.0,95150.0,0.1911439]
[1739368562580,0.4233,95169.0,95158.0,0.3608]
[1739368562786,0.4233,95169.0,95161.0,0.3608]
[1739368563179,0.4233,95169.0,95167.0,0.3608]
[1739368563481,0.4233,95169.0,95167.0,0.30809352]
[1739368563683,0.1911439,95190.0,95167.0,0.30809352]
[1739368563882,0.39377753,95198.0,95170.0,0.1911439]
[1739368564076,0.18367783,95198.0,95188.0,0.1911439]
[1739368564271,0.18367783,95198.0,95191.0,0.3608]
[1739368564484,0.18367783,95198.0,95191.0,0.5709139]
[1739368564681,0.15336027,95198.0,95191.0,0.5709139]
[1739368564986,0.12340695,95198.0,95191.0,0.5709139]
[1739368565190,0.11730735,95198.0,95197.0,0.3608]
[1739368565485,0.3608,95220.0,95210.0,0.03842372]
[1739368566087,0.3608,95220.0,95210.0,0.22956762]
[1739368566478,0.3608,95211.0,95205.0,0.00015755]
[1739368566676,0.2101032,95197.0,95191.0,0.001]
[1739368566988,0.3608,95192.0,95166.0,0.3608]
[1739368567286,0.2101494,95176.0,95166.0,0.05165571]
[1739368567482,0.2101494,95176.0,95160.0,0.1911439]
[1739368567677,0.3608,95165.0,95150.0,0.24483471]
[1739368567987,0.210162,95170.0,95161.0,0.00015755]
[1739368568185,0.3608,95162.0,95161.0,0.00015755]
[1739368568577,0.5709791,95162.0,95161.0,0.00015755]
[1739368568975,0.3608,95176.0,95161.0,0.00015755]
[1739368569177,0.00015663,95181.0,95163.0,0.3608]
[1739368569380,0.00015663,95181.0,95180.0,0.3608]
[1739368569587,0.2491,95216.0,95180.0,0.30809352]
[1739368569880,0.2491,95216.0,95200.0,0.1911439]
[1739368570082,0.3608,95217.0,95192.0,0.3608]
[1739368570586,0.3608,95217.0,95193.0,0.2563]
[1739368570887,0.001,95216.0,95200.0,0.3608]
[1739368571482,0.3608,95209.0,95195.0,0.00015755]
[1739368571789,0.3608,95201.0,95195.0,0.00015755]
[1739368572185,0.001,95216.0,95195.0,0.00015755]
[1739368572186,0.001,95216.0,95197.0,0.2101016]
[1739368572491,0.3608,95214.0,95200.0,0.001]
[1739368572696,0.3608,95214.0,95192.0,0.36111812]
[1739368573386,0.3608,95206.0,95192.0,0.36111812]
[1739368573582,0.3608,95206.0,95181.0,0.3608]
[1739368573880,0.2100832,95206.0,95189.0,0.00015755]
[1739368574085,0.3608,95199.0,95195.0,0.001]
[1739368574287,0.007,95201.0,95195.0,0.001]
[1739368574888,0.006,95206.0,95192.0,0.003]
[1739368575091,0.006,95206.0,95199.0,0.3608]
[1739368575286,0.00015755,95209.0,95199.0,0.3608]
[1739368575486,0.007,95201.0,95199.0,0.3608]
[1739368575687,0.007,95201.0,95199.0,0.30809352]
[1739368575884,0.008,95206.0,95200.0,0.4127]
[1739368576487,0.01,95206.0,95200.0,0.4127]
[1739368576692,0.3608,95205.0,95200.0,0.4127]
[1739368576888,0.3608,95205.0,95192.0,0.05330344]
[1739368577197,0.007,95206.0,95198.0,0.3608]
[1739368577393,0.01,95206.0,95199.0,0.3608]
[1739368577591,0.007,95201.0,95199.0,0.3618]
[1739368578093,0.003,95206.0,95199.0,0.3618]
[1739368578094,0.003,95206.0,95199.0,0.3608]
[1739368578295,0.007,95205.0,95199.0,0.3608]
[1739368578798,0.007,95201.0,95199.0,0.30909352]
[1739368579188,0.007,95201.0,95199.0,0.001]
[1739368579993,0.2101146,95192.0,95189.0,0.00015755]
[1739368580193,0.3608,95190.0,95179.0,0.00157597]
[1739368580399,0.3608,95180.0,95179.0,0.00157597]
[1739368580695,0.3608,95198.0,95179.0,0.00157597]
[1739368580896,0.3608,95198.0,95183.0,0.3608]
[1739368581196,0.3608,95198.0,95179.0,0.00157597]
[1739368581197,0.3598,95189.0,95179.0,0.00157597]
[1739368581492,0.3608,95180.0,95163.0,0.3608]
[1739368581699,0.3608,95169.0,95153.0,0.19065107]
[1739368581895,0.3568,95169.0,95153.0,0.19065107]
[1739368582191,0.3989,95191.0,95145.0,0.4258]
[1739368582192,0.3598,95155.0,95145.0,0.4258]
[1739368582389,0.3598,95155.0,95144.0,0.24191503]
[1739368582596,0.4053,95166.0,95154.0,0.3608]
[1739368582888,0.00015765,95170.0,95165.0,0.3608]
[1739368583196,0.001,95180.0,95166.0,0.8055]
[1739368583390,0.29411465,95180.0,95166.0,0.4095]
[1739368583590,0.3608,95183.0,95166.0,0.4095]
[1739368583790,0.3608,95183.0,95165.0,0.3608]
[1739368584000,0.001,95169.0,95165.0,0.05254791]
[1739368584299,0.001,95169.0,95159.0,0.05272129]
[1739368584490,0.004,95170.0,95154.0,0.3608]
[1739368584792,0.3648,95170.0,95146.0,0.35695117]
[1739368585111,0.007,95169.0,95166.0,0.3608]
[1739368585300,0.001,95180.0,95167.0,0.2647]
[1739368585597,0.001,95180.0,95175.0,0.3608]
[1739368586090,0.00015765,95184.0,95175.0,0.3608]
[1739368586296,0.00015765,95184.0,95183.0,0.3608]
[1739368587501,0.00415765,95184.0,95183.0,0.3608]
[1739368587799,0.00415765,95184.0,95183.0,0.30809352]
[1739368590995,0.00015765,95184.0,95183.0,0.3075645]
[1739368591195,0.00415765,95184.0,95183.0,0.3075645]
[1739368592696,0.00015765,95184.0,95183.0,0.3075645]
[1739368592899,0.00515765,95184.0,95183.0,0.3085645]
[1739368593492,0.00615765,95184.0,95183.0,0.06217746]
[1739368593995,0.00615765,95184.0,95183.0,0.00947098]
[1739368594397,0.00515765,95184.0,95183.0,0.01]
[1739368594893,0.00115765,95184.0,95183.0,0.009]
[1739368595093,0.00515765,95184.0,95183.0,0.01]
[1739368595499,0.00515765,95184.0,95183.0,0.009]
[1739368595702,0.00115765,95184.0,95183.0,0.009]
[1739368596096,0.3608,95219.0,95183.0,0.431]
[1739368596292,0.3608,95219.0,95190.0,0.19082628]
[1739368596499,0.3999,95225.0,95193.0,0.5709104]
[1739368596698,0.3999,95225.0,95200.0,0.19082628]
[1739368596896,0.3999,95225.0,95201.0,0.19089352]
[1739368597301,0.00015756,95223.0,95210.0,0.19082628]
[1739368597611,0.001,95219.0,95210.0,0.19082628]
[1739368597907,0.001,95219.0,95218.0,0.3608]
[1739368598305,0.00015756,95223.0,95218.0,0.3608]
[1739368598602,0.00060001,95244.0,95222.0,0.5708466]
[1739368598801,0.8376,95266.0,95237.0,0.3608]
[1739368599509,0.18548077,95253.0,95240.0,0.19082628]
[1739368599807,0.18548077,95253.0,95245.0,0.3608]
[1739368600003,0.18548077,95253.0,95245.0,0.30809352]
[1739368600703,0.3608,95250.0,95242.0,0.00015748]
[1739368601303,0.3608,95250.0,95245.0,0.002]
[1739368601812,0.3658,95250.0,95245.0,0.001]